bitfinex/quotes_BTCUSD_20250617
["timestamp","ask_amount","ask_price","bid_price","bid_amount"]
[1750164243758,0.44719393,105830.0,105820.0,0.4079487]
[1750164244449,0.26766,105830.0,105820.0,0.40794816]
[1750164244703,0.27710814,105830.0,105820.0,0.40794816]
[1750164245127,0.27710814,105830.0,105820.0,0.42314816]
[1750164245334,0.003,105830.0,105820.0,0.42314816]
[1750164245697,0.01244849,105830.0,105820.0,0.42314816]
[1750164246659,0.02189716,105830.0,105820.0,0.42314816]
[1750164247297,0.01244849,105830.0,105820.0,0.42314816]
[1750164247533,0.02189716,105830.0,105820.0,0.26714816]
[1750164247670,0.02189716,105830.0,105820.0,0.42310816]
[1750164248754,0.03134591,105830.0,105820.0,0.42310816]
[1750164249406,0.04079484,105830.0,105820.0,0.42310816]
[1750164249619,0.27710849,105830.0,105820.0,0.42310816]
[1750164249881,0.46609144,105830.0,105820.0,0.3890094]
[1750164250283,0.46609144,105830.0,105820.0,0.39845896]
[1750164250486,0.46609144,105830.0,105820.0,0.40790843]
[1750164251354,0.46609144,105830.0,105820.0,0.40790798]
[1750164252461,0.46609144,105830.0,105820.0,0.3984586]
[1750164252841,0.46609144,105830.0,105820.0,0.42320798]
[1750164253298,0.46609144,105830.0,105820.0,0.26724798]
[1750164253528,0.46609144,105830.0,105820.0,0.42320798]
[1750164253966,0.46609144,105830.0,105820.0,0.3984586]
[1750164254170,0.26766,105830.0,105820.0,0.40790798]
[1750164254438,0.27710902,105830.0,105820.0,0.40790798]
[1750164254975,0.46609135,105830.0,105820.0,0.40790798]
[1750164255180,0.47554046,105830.0,105820.0,0.40790798]
[1750164255604,0.23922681,105830.0,105820.0,0.40790798]
[1750164255806,0.47554046,105830.0,105820.0,0.40790798]
[1750164256224,0.27710902,105830.0,105820.0,0.40786798]
[1750164256720,0.26766,105830.0,105820.0,0.40786798]
[1750164257235,0.25821107,105830.0,105820.0,0.40786798]
[1750164257574,0.46609144,105830.0,105820.0,0.40786798]
[1750164257693,0.46609144,105830.0,105820.0,0.3984186]
[1750164257899,0.46609144,105830.0,105820.0,0.38896913]
[1750164259148,0.46609144,105830.0,105820.0,0.3984186]
[1750164259554,0.46609144,105830.0,105820.0,0.40786798]
[1750164259781,0.26766,105830.0,105820.0,0.40786798]
[1750164260203,0.45664233,105830.0,105820.0,0.40786798]
[1750164260405,0.46609144,105830.0,105820.0,0.3984186]
[1750164261028,0.46609144,105830.0,105820.0,0.38896913]
[1750164261232,0.45664277,105830.0,105820.0,0.37951957]
[1750164261522,0.45664277,105830.0,105820.0,0.38896913]
[1750164261850,0.45664277,105830.0,105820.0,0.3984186]
[1750164262940,0.45620852,105830.0,105820.0,0.3984186]
[1750164264626,0.45620852,105830.0,105820.0,0.37951992]
[1750164265040,0.45620852,105830.0,105820.0,0.38896957]
[1750164265225,0.22032912,105830.0,105820.0,0.38896957]
[1750164265538,0.45620852,105830.0,105820.0,0.39841913]
[1750164265966,0.45620852,105830.0,105820.0,0.4078686]
[1750164266214,0.25777664,105830.0,105820.0,0.40786798]
[1750164266435,0.25777664,105830.0,105820.0,0.42426798]
[1750164266656,0.25777664,105830.0,105820.0,0.26834798]
[1750164266856,0.25777664,105830.0,105820.0,0.42426798]
[1750164267069,0.003,105830.0,105820.0,0.42426798]
[1750164267282,0.24832771,105830.0,105820.0,0.42426798]
[1750164267507,0.02189671,105830.0,105820.0,0.42426798]
[1750164267712,0.01244831,105830.0,105820.0,0.42426798]
[1750164267920,0.24832771,105830.0,105820.0,0.42426798]
[1750164268561,0.24832771,105830.0,105820.0,0.66014738]
[1750164268562,0.003,105830.0,105820.0,0.66014738]
[1750164269213,0.01504828,105840.0,105830.0,0.25042859]
[1750164269431,0.02449596,105840.0,105830.0,0.25042859]
[1750164269689,0.26982313,105840.0,105830.0,0.25042859]
[1750164269918,0.57889811,105850.0,105840.0,0.20786028]
[1750164270133,0.91889811,105850.0,105840.0,0.37924028]
[1750164270342,0.91889811,105850.0,105840.0,0.36979251]
[1750164270552,0.91903971,105850.0,105840.0,0.36979251]
[1750164270762,0.91903971,105850.0,105840.0,0.38868832]
[1750164270983,0.92520305,105850.0,105840.0,0.38868832]
[1750164271209,0.92820305,105850.0,105840.0,0.38868832]
[1750164272243,0.93120305,105850.0,105840.0,0.38868832]
[1750164272455,0.93120305,105850.0,105840.0,0.37924046]
[1750164272886,0.92175599,105850.0,105840.0,0.0155]
[1750164273100,0.92175599,105850.0,105840.0,0.17138]
[1750164273314,0.92175599,105850.0,105840.0,0.17088]
[1750164274448,1.03439775,105850.0,105840.0,0.15588]
[1750164275720,0.19841269,105840.0,105830.0,0.25957726]
[1750164275933,0.4342118,105840.0,105830.0,0.41545726]
[1750164276578,0.44365975,105840.0,105830.0,0.41545726]
[1750164276785,0.44665975,105840.0,105830.0,0.41545726]
[1750164277000,0.44665975,105840.0,105830.0,0.25957726]
[1750164277206,0.45610743,105840.0,105830.0,0.40596877]
[1750164277422,0.45610743,105840.0,105830.0,0.25012877]
[1750164277637,0.46555502,105840.0,105830.0,0.38707126]
[1750164277846,0.46555502,105840.0,105830.0,0.37057126]
[1750164278068,0.46555502,105840.0,105830.0,0.3800201]
[1750164278757,0.19843126,105830.0,105810.0,0.26412808]
[1750164279006,0.43423037,105830.0,105820.0,0.3704897]
[1750164279210,0.43423037,105830.0,105820.0,0.37993953]
[1750164279833,0.44367904,105830.0,105820.0,0.38938927]
[1750164280040,0.45312815,105830.0,105820.0,0.41433883]
[1750164280260,0.45312815,105830.0,105820.0,0.25849883]
[1750164280473,0.25469618,105830.0,105820.0,0.41433883]
[1750164280681,0.46257637,105830.0,105820.0,0.42478821]
[1750164281118,0.03779493,105830.0,105820.0,0.42478821]
[1750164281327,0.46257637,105830.0,105820.0,0.42478821]
[1750164281569,0.47202548,105830.0,105820.0,0.42478821]
[1750164281776,0.47202548,105830.0,105820.0,0.41533883]
[1750164281987,0.27359404,105830.0,105820.0,0.42478821]
[1750164282193,0.46257637,105830.0,105820.0,0.42478821]
[1750164282409,0.47202548,105830.0,105820.0,0.42478821]
[1750164282626,0.27359404,105830.0,105820.0,0.42478821]
[1750164282858,0.02834591,105830.0,105820.0,0.42478821]
[1750164283075,0.27359395,105830.0,105820.0,0.42478821]
[1750164283692,0.03779484,105830.0,105820.0,0.42478821]
[1750164283898,0.28304297,105830.0,105820.0,0.42478821]
[1750164284349,0.02834591,105830.0,105820.0,0.42478821]
[1750164284555,0.27359395,105830.0,105820.0,0.42478821]
[1750164285432,0.47202601,105830.0,105820.0,0.41533883]
[1750164285655,0.4625769,105830.0,105820.0,0.42478821]
[1750164286620,0.47202601,105830.0,105820.0,0.42478821]
[1750164287476,0.46257734,105830.0,105820.0,0.41529883]
[1750164287676,0.46257734,105830.0,105820.0,0.4247483]
[1750164288098,0.27359501,105830.0,105820.0,0.4247483]
[1750164288323,0.2641459,105830.0,105820.0,0.42474776]
[1750164289350,0.45312823,105830.0,105820.0,0.40584891]
[1750164289565,0.45312823,105830.0,105820.0,0.39034891]
[1750164289932,0.45312823,105830.0,105820.0,0.39979838]
[1750164290506,0.45312823,105830.0,105820.0,0.41599838]
[1750164290709,0.45312823,105830.0,105820.0,0.42544776]
[1750164290887,0.26421459,105830.0,105820.0,0.42544776]
[1750164291104,0.45319692,105830.0,105820.0,0.42544776]
[1750164291512,0.26421459,105830.0,105820.0,0.42544776]
[1750164291959,0.46264603,105830.0,105820.0,0.41599838]
[1750164293437,0.46264603,105830.0,105820.0,0.40654891]
[1750164294087,0.46264603,105830.0,105820.0,0.41599838]
[1750164294344,0.46264603,105830.0,105820.0,0.40305981]
[1750164296619,0.46264603,105830.0,105820.0,0.41250919]
[1750164296858,0.26421459,105830.0,105820.0,0.41250919]
[1750164297678,0.25476557,105830.0,105820.0,0.41250919]
[1750164299600,0.4437479,105830.0,105820.0,0.41250919]
[1750164299904,0.45319692,105830.0,105820.0,0.41250919]
[1750164300470,0.26421459,105830.0,105820.0,0.41250919]
[1750164300909,0.46264603,105830.0,105820.0,0.41250919]
[1750164301133,0.45319719,105830.0,105820.0,0.19945018]
[1750164301372,0.45319719,105830.0,105820.0,0.3646601]
[1750164302739,0.7992088,105830.0,105820.0,0.001]
[1750164303175,0.563341,105830.0,105820.0,0.15676]
[1750164303384,0.7992088,105830.0,105820.0,0.15676]
[1750164304229,0.563341,105830.0,105820.0,0.15676]
[1750164304657,0.45319657,105830.0,105820.0,0.40560939]
[1750164304866,0.25476522,105830.0,105820.0,0.41505877]
[1750164305077,0.26421336,105830.0,105820.0,0.41505877]
[1750164305295,0.27366229,105830.0,105820.0,0.41505877]
[1750164305725,0.47209373,105830.0,105820.0,0.41505877]
[1750164305964,0.46264542,105830.0,105820.0,0.39615992]
[1750164306175,0.273663,105830.0,105820.0,0.41505895]
[1750164306385,0.26421398,105830.0,105820.0,0.41505895]
[1750164306635,0.45319631,105830.0,105820.0,0.40556957]
[1750164307540,0.43429906,105830.0,105820.0,0.37047018]
[1750164307769,0.43429906,105830.0,105820.0,0.3799201]
[1750164308063,0.43429906,105830.0,105820.0,0.38936993]
[1750164308559,0.42485013,105830.0,105820.0,0.38936993]
[1750164309076,0.42485013,105830.0,105820.0,0.17202]
[1750164310055,0.42485013,105830.0,105820.0,0.36102018]
[1750164310285,0.42485013,105830.0,105820.0,0.37047018]
[1750164310507,0.42485013,105830.0,105820.0,0.0163]
[1750164310755,0.42485013,105830.0,105820.0,0.15672]
[1750164311458,0.42485013,105830.0,105820.0,0.001]
[1750164311697,0.78805969,105830.0,105820.0,0.001]
[1750164311928,0.78805969,105830.0,105820.0,0.15672]
[1750164312345,0.78805969,105830.0,105820.0,0.001]
[1750164312592,1.22994399,105830.0,105820.0,0.001]
[1750164312832,1.38566399,105830.0,105820.0,0.001]
[1750164313063,1.14991349,105830.0,105820.0,0.001]
[1750164313320,1.14991349,105830.0,105810.0,0.15572]
[1750164313558,0.19846886,105810.0,105800.0,0.38035677]
[1750164313798,0.43445396,105810.0,105800.0,0.0001]
[1750164314018,0.43445396,105810.0,105800.0,0.15582]
[1750164314246,0.43445396,105810.0,105800.0,0.34485591]
[1750164314459,0.43445396,105810.0,105800.0,0.3543077]
[1750164314692,0.43445396,105810.0,105800.0,0.3697077]
[1750164314900,0.43445396,105810.0,105800.0,0.37118051]
[1750164316008,0.43445396,105810.0,105800.0,0.38063212]
[1750164316363,0.43445396,105810.0,105800.0,0.37008085]
[1750164316771,0.43445396,105810.0,105800.0,0.35568051]
[1750164317403,0.53069572,105810.0,105800.0,0.00147281]
[1750164317615,0.53694491,105810.0,105800.0,0.15719281]
[1750164317809,0.52124491,105810.0,105800.0,0.34622872]
[1750164318018,0.52124491,105810.0,105800.0,0.35568051]
[1750164318896,0.52124491,105810.0,105800.0,0.36513212]
[1750164319074,0.52124491,105810.0,105800.0,0.37458364]
[1750164319541,0.52124491,105810.0,105800.0,0.36513221]
[1750164319813,0.52124491,105810.0,105800.0,0.38403534]
[1750164320634,0.52124491,105810.0,105800.0,0.39348677]
[1750164321097,0.52124491,105810.0,105800.0,0.39348632]
[1750164321551,0.52124491,105810.0,105800.0,0.40898632]
[1750164322674,0.52124491,105810.0,105800.0,0.38403498]
[1750164323980,0.52124491,105810.0,105800.0,0.39983498]
[1750164325319,0.52124491,105810.0,105800.0,0.38403498]
[1750164326191,0.52124491,105810.0,105800.0,0.37458355]
[1750164326404,0.52124491,105810.0,105800.0,0.21886355]
[1750164326627,0.52124491,105810.0,105800.0,0.36509203]
[1750164327283,0.52124491,105810.0,105800.0,0.37454355]
[1750164328804,0.53069572,105810.0,105800.0,0.37454355]
[1750164328978,0.54959716,105810.0,105800.0,0.38399498]
[1750164329195,0.54959716,105810.0,105800.0,0.39344623]
[1750164329389,0.35112821,105810.0,105800.0,0.4096457]
[1750164330040,0.54959716,105810.0,105800.0,0.4096457]
[1750164331084,0.54959716,105810.0,105800.0,0.40019453]
[1750164331316,0.54959716,105810.0,105800.0,0.38399453]
[1750164331946,0.54959716,105810.0,105800.0,0.37454328]
[1750164332830,0.54960257,105810.0,105800.0,0.37454328]
[1750164333241,0.31361206,105810.0,105800.0,0.21886328]
[1750164333456,0.54960257,105810.0,105800.0,0.38399462]
[1750164333658,0.54960257,105810.0,105800.0,0.35564051]
[1750164333869,0.54960257,105810.0,105800.0,0.36509212]
[1750164334290,0.53070122,105810.0,105800.0,0.36509221]
[1750164334487,0.53070122,105810.0,105800.0,0.19996051]
[1750164334713,0.53070122,105810.0,105800.0,0.35560051]
[1750164336480,0.52125032,105810.0,105800.0,0.35560051]
[1750164336686,0.52125032,105810.0,105800.0,0.37130051]
[1750164337319,0.52125032,105810.0,105800.0,0.35560051]
[1750164337552,0.52125032,105810.0,105800.0,0.15711281]
[1750164338734,0.78794083,105810.0,105800.0,0.15711281]
[1750164339372,0.78794083,105810.0,105800.0,0.00147281]
[1750164340349,1.14248168,105810.0,105800.0,0.00147281]
[1750164340605,1.3942709,105810.0,105800.0,0.00147281]
[1750164342472,1.29812168,105810.0,105800.0,0.00147281]
[1750164343647,1.32651168,105810.0,105800.0,0.00147281]
[1750164346896,1.56250219,105810.0,105800.0,0.00147281]
[1750164347319,1.34916902,105810.0,105800.0,0.00047281]
[1750164347547,1.56350219,105810.0,105800.0,0.00047281]
[1750164347762,1.68230453,105810.0,105800.0,0.00047281]
[1750164348882,1.68430453,105810.0,105800.0,0.00047281]
[1750164349388,1.68230453,105810.0,105800.0,0.00047281]
[1750164349851,1.68530453,105810.0,105800.0,0.00047281]
[1750164350518,1.68430453,105810.0,105800.0,0.00047281]
[1750164350968,1.45159646,105810.0,105800.0,0.00047281]
[1750164351192,1.68772819,105810.0,105800.0,0.00047281]
[1750164352253,1.45159646,105810.0,105800.0,0.00047281]
[1750164355058,1.50159646,105810.0,105800.0,0.00047281]
[1750164358489,1.73772819,105810.0,105800.0,0.00047281]
[1750164359138,1.20759183,105800.0,105790.0,0.19238989]
[1750164359349,1.61895593,105800.0,105790.0,0.19247931]
[1750164360224,1.61895593,105800.0,105790.0,0.14518815]
[1750164360467,0.59481903,105780.0,105770.0,0.07557508]
[1750164360666,1.43803316,105780.0,105770.0,0.07557508]
[1750164361090,1.58803316,105780.0,105770.0,0.07557508]
[1750164361302,1.61643316,105780.0,105770.0,0.07557508]
[1750164361943,0.20801752,105760.0,105750.0,0.10717508]
[1750164362182,0.89493186,105760.0,105750.0,0.1072645]
[1750164362388,0.95714684,105760.0,105750.0,0.1072645]
[1750164362608,1.15346684,105760.0,105750.0,0.1072645]
[1750164362824,1.42149857,105760.0,105750.0,8.942e-05]
[1750164363038,1.57149857,105760.0,105750.0,0.00889731]
[1750164363242,1.59974181,105760.0,105750.0,0.00889731]
[1750164363706,1.40342181,105760.0,105750.0,0.00608942]
[1750164363919,1.40342181,105760.0,105750.0,0.00108942]
[1750164364128,1.59974181,105760.0,105750.0,0.00108942]
[1750164364340,1.40542181,105760.0,105750.0,0.00108942]
[1750164364576,1.60174181,105760.0,105750.0,0.00108942]
[1750164365052,1.60174181,105760.0,105750.0,0.01871531]
[1750164365249,1.60174181,105760.0,105750.0,0.01771531]
[1750164365503,1.40542181,105760.0,105750.0,0.01771531]
[1750164365749,1.60474181,105760.0,105750.0,0.01771531]
[1750164365956,1.6122926,105760.0,105750.0,0.01769813]
[1750164366390,1.6123326,105760.0,105750.0,0.01769813]
[1750164367047,1.4159726,105760.0,105750.0,0.01769813]
[1750164367258,1.6123326,105760.0,105750.0,0.01769813]
[1750164367891,1.17984087,105760.0,105750.0,0.01769813]
[1750164368110,1.34430087,105760.0,105750.0,0.03429813]
[1750164368321,1.5804326,105760.0,105750.0,0.01769813]
[1750164368730,1.3840726,105760.0,105750.0,0.01769813]
[1750164368939,1.5804326,105760.0,105750.0,0.01769813]
[1750164369147,1.3840726,105760.0,105750.0,0.01769813]
[1750164369368,1.34430087,105760.0,105750.0,0.01769813]
[1750164369992,1.34430087,105760.0,105750.0,8.942e-05]
[1750164370466,1.5804326,105760.0,105750.0,8.942e-05]
[1750164370718,1.5804326,105760.0,105750.0,0.01558942]
[1750164370719,1.19430087,105760.0,105750.0,0.01558942]
[1750164371230,1.22270587,105760.0,105750.0,0.01558942]
[1750164371485,1.22270587,105760.0,105750.0,0.03068942]
[1750164372480,0.96413089,105760.0,105750.0,0.03068942]
[1750164372978,0.92435916,105760.0,105750.0,0.03068942]
[1750164373214,1.16049089,105760.0,105750.0,0.03068942]
[1750164375799,1.16045089,105760.0,105750.0,0.03068942]
[1750164383807,1.16045089,105760.0,105750.0,0.03068942]
[1750164396052,0.92431916,105760.0,105750.0,0.03068942]
[1750164396294,1.16045089,105760.0,105750.0,0.03068942]
[1750164397564,1.25660011,105760.0,105750.0,0.03068942]
[1750164399302,1.27929292,105760.0,105750.0,0.03068942]
[1750164399518,1.25660011,105760.0,105750.0,0.03068942]
[1750164400260,1.27929677,105760.0,105750.0,0.03068942]
[1750164403163,1.08297677,105760.0,105750.0,0.03068942]
[1750164403368,1.18298755,105760.0,105750.0,0.03068942]
[1750164403608,1.16029089,105760.0,105750.0,0.03068942]
[1750164405386,1.18299338,105760.0,105750.0,0.03068942]
[1750164405613,1.16029089,105760.0,105750.0,0.03068942]
[1750164406533,0.94686262,105760.0,105750.0,0.03068942]
[1750164406771,1.18299435,105760.0,105750.0,0.03068942]
[1750164408406,1.16029089,105760.0,105750.0,0.03068942]
[1750164408869,1.39665888,105760.0,105750.0,0.03068942]
[1750164410799,1.4928081,105760.0,105750.0,0.03068942]
[1750164412922,1.4520881,105760.0,105750.0,0.03068942]
[1750164413968,1.35593888,105760.0,105750.0,0.03068942]
[1750164416298,1.35593888,105760.0,105750.0,0.01558942]
[1750164417242,1.35541688,105760.0,105750.0,0.01558942]
[1750164420301,0.41710577,105770.0,105760.0,1.64458312]
[1750164420520,0.53378517,105770.0,105760.0,1.64458312]
[1750164420751,0.56218817,105770.0,105760.0,1.64458312]
[1750164421577,1.03468789,105770.0,105760.0,1.64458312]
[1750164422007,1.04568789,105770.0,105760.0,1.64458312]
[1750164422221,1.40022874,105770.0,105760.0,1.64458312]
[1750164422432,1.73262782,105770.0,105760.0,1.64458312]
[1750164423595,1.74033835,105770.0,105760.0,1.64458312]
[1750164423824,1.79033835,105770.0,105760.0,1.28467203]
[1750164424283,1.81911498,105770.0,105760.0,1.28467203]
[1750164424833,2.52786456,105770.0,105760.0,1.28467203]
[1750164425060,1.73313328,105770.0,105760.0,1.2380953]
[1750164427798,1.73313328,105770.0,105760.0,1e-08]
[1750164434102,1.49670934,105770.0,105760.0,1e-08]
[1750164436307,1.49674934,105770.0,105760.0,1e-08]
[1750164436743,1.73313328,105770.0,105760.0,1e-08]
[1750164437829,1.76146199,105770.0,105760.0,1e-08]
[1750164441184,1.11682625,105760.0,105750.0,4.943e-05]
[1750164441404,1.51405607,105760.0,105750.0,4.943e-05]
[1750164442492,1.51905607,105760.0,105750.0,4.943e-05]
[1750164443584,1.52105607,105760.0,105750.0,4.943e-05]
[1750164444765,1.47105607,105760.0,105750.0,4.943e-05]
[1750164446615,0.94898166,105740.0,105730.0,0.0161]
[1750164446836,0.94898166,105740.0,105730.0,0.01618919]
[1750164446837,1.35999109,105740.0,105730.0,0.01618919]
[1750164447049,1.59636949,105740.0,105730.0,0.01618919]
[1750164447259,1.59636949,105740.0,105730.0,0.03118919]
[1750164447475,1.62478249,105740.0,105730.0,0.03118919]
[1750164448096,1.62478249,105740.0,105730.0,0.03318919]
[1750164450691,1.62478249,105740.0,105730.0,0.00208919]
[1750164451106,1.62478249,105740.0,105730.0,0.01798919]
[1750164452017,1.15202015,105740.0,105730.0,0.01798919]
[1750164452264,1.62474249,105740.0,105730.0,0.03428919]
[1750164452484,1.52859327,105740.0,105730.0,0.03428919]
[1750164453620,1.33271327,105740.0,105730.0,0.03428919]
[1750164453838,1.52859327,105740.0,105730.0,0.03428919]
[1750164455238,1.05583093,105740.0,105730.0,0.03428919]
[1750164455444,1.10293867,105740.0,105730.0,0.03428919]
[1750164455651,1.57570101,105740.0,105730.0,0.03428919]
[1750164456486,1.07363365,105740.0,105730.0,0.03428919]
[1750164456705,1.50589482,105740.0,105730.0,0.03428919]
[1750164462713,0.83725248,105740.0,105730.0,0.03428919]
[1750164462988,1.50589482,105740.0,105730.0,0.03428919]
[1750164463961,0.86859163,105740.0,105730.0,0.03428919]
[1750164464625,1.1049728,105740.0,105730.0,0.03428919]
[1750164465606,1.0765598,105740.0,105730.0,0.03428919]
[1750164467514,0.50017863,105740.0,105730.0,0.03428919]
[1750164467744,1.0765598,105740.0,105730.0,0.03428919]
[1750164470053,0.9212398,105740.0,105730.0,0.03428919]
[1750164470250,1.0765598,105740.0,105730.0,0.03428919]
[1750164475671,1.31294097,105740.0,105730.0,0.03428919]
[1750164475894,1.42363104,105740.0,105730.0,0.01798919]
[1750164476976,1.18722432,105740.0,105730.0,0.01798919]
[1750164483093,1.18722432,105740.0,105730.0,0.00208919]
[1750164483323,1.22639765,105740.0,105730.0,0.00208919]
[1750164483534,1.24279765,105740.0,105730.0,0.00208919]
[1750164483962,1.22639765,105740.0,105730.0,0.00208919]
[1750164484862,1.20989765,105740.0,105730.0,0.00208919]
[1750164486814,1.23830965,105740.0,105730.0,0.00208919]
[1750164489667,1.25420965,105740.0,105730.0,0.00208919]
[1750164489896,1.26920965,105740.0,105730.0,0.00208919]
[1750164494448,1.41920965,105740.0,105730.0,0.00208919]
[1750164497025,1.89203222,105740.0,105730.0,0.00208919]
[1750164497247,1.65563949,105740.0,105730.0,0.00208919]
[1750164506356,1.64063949,105740.0,105730.0,0.00208919]
[1750164506571,1.62473949,105740.0,105730.0,0.00208919]
[1750164506789,0.79153318,105740.0,105730.0,0.00208919]
[1750164507009,0.79153318,105740.0,105730.0,0.03358919]
[1750164507010,0.93177669,105740.0,105730.0,0.03358919]
[1750164507271,1.10478336,105740.0,105730.0,0.03358919]
[1750164507965,1.11932421,105740.0,105730.0,0.03358919]
[1750164510493,1.35571694,105740.0,105730.0,0.03358919]
[1750164510702,1.45186616,105740.0,105730.0,0.03358919]
[1750164512033,1.47455342,105740.0,105730.0,0.03358919]
[1750164512924,1.71094615,105740.0,105730.0,0.00208919]
[1750164513149,1.72664615,105740.0,105730.0,0.00208919]
[1750164513363,1.49025342,105740.0,105730.0,0.00208919]
[1750164513582,1.47455342,105740.0,105730.0,0.00208919]
[1750164516190,1.74374615,105740.0,105730.0,0.00208919]
[1750164516412,1.77210559,105740.0,105730.0,0.00208919]
[1750164516898,1.29935734,105740.0,105730.0,0.00208919]
[1750164517559,1.29935734,105740.0,105730.0,8.919e-05]
[1750164517791,1.30035734,105740.0,105730.0,8.919e-05]
[1750164519134,1.30035366,105740.0,105730.0,8.919e-05]
[1750164519896,1.5367836,105740.0,105730.0,8.919e-05]
[1750164520104,1.30035366,105740.0,105730.0,8.919e-05]
[1750164522629,1.5367836,105740.0,105730.0,8.919e-05]
[1750164523033,1.67436553,105740.0,105730.0,8.919e-05]
[1750164523235,1.6460083,105740.0,105730.0,8.919e-05]
[1750164523440,1.5960083,105740.0,105730.0,8.919e-05]
[1750164523645,1.6460083,105740.0,105730.0,8.919e-05]
[1750164524052,1.6450083,105740.0,105730.0,8.919e-05]
[1750164524537,1.6560083,105740.0,105730.0,8.919e-05]
[1750164524743,1.6060083,105740.0,105730.0,8.919e-05]
[1750164525153,1.6560083,105740.0,105730.0,8.919e-05]
[1750164525375,1.8060083,105740.0,105730.0,8.919e-05]
[1750164528244,1.33314842,105740.0,105730.0,8.919e-05]
[1750164528451,1.8060083,105740.0,105730.0,8.919e-05]
[1750164529870,1.83432469,105740.0,105730.0,8.919e-05]
[1750164533278,1.83424469,105740.0,105730.0,8.919e-05]
[1750164533495,1.59781475,105740.0,105730.0,8.919e-05]
[1750164533720,1.83424469,105740.0,105730.0,8.919e-05]
[1750164534404,1.79666276,105740.0,105730.0,8.919e-05]
[1750164535091,1.12820288,105740.0,105730.0,8.919e-05]
[1750164535303,1.79666276,105740.0,105730.0,8.919e-05]
[1750164538614,1.83424469,105740.0,105730.0,8.919e-05]
[1750164539235,1.63864469,105740.0,105730.0,8.919e-05]
[1750164539444,1.83424469,105740.0,105730.0,8.919e-05]
[1750164539656,1.8059283,105740.0,105730.0,8.919e-05]
[1750164540757,0.35809622,105720.0,105710.0,0.0322]
[1750164541009,1.51828521,105720.0,105710.0,0.0322]
[1750164541258,1.55551185,105720.0,105710.0,0.0165]
[1750164541749,1.58393285,105720.0,105710.0,0.0165]
[1750164542013,1.38757285,105720.0,105710.0,0.0165]
[1750164542252,1.58401285,105720.0,105710.0,0.0165]
[1750164542493,1.58401285,105720.0,105710.0,0.0321]
[1750164542935,1.58601285,105720.0,105710.0,0.0321]
[1750164543190,1.58801285,105720.0,105710.0,0.0321]
[1750164543393,1.58801285,105720.0,105710.0,0.0165]
[1750164544517,0.53865651,105710.0,105700.0,2.0316]
[1750164544732,1.16078407,105710.0,105700.0,2.0316]
[1750164545411,1.1897444,105710.0,105700.0,2.0316]
[1750164545853,1.21575249,105710.0,105700.0,2.0316]
[1750164548023,1.21575249,105710.0,105700.0,2.015]
[1750164549291,1.21575249,105710.0,105700.0,2.0308]
[1750164551182,1.24417449,105710.0,105700.0,2.0308]
[1750164551704,1.28441449,105710.0,105700.0,2.0308]
[1750164552365,1.08809449,105710.0,105700.0,2.0308]
[1750164552594,1.28441449,105710.0,105700.0,2.0308]
[1750164553751,1.08809449,105710.0,105700.0,2.0308]
[1750164553959,1.28449449,105710.0,105700.0,2.0308]
[1750164554597,1.04798455,105710.0,105700.0,2.0308]
[1750164554814,1.28441449,105710.0,105700.0,2.0308]
[1750164556196,1.08809449,105710.0,105700.0,2.0308]
[1750164556413,1.28441449,105710.0,105700.0,2.0308]
[1750164556848,1.08809449,105710.0,105700.0,2.0308]
[1750164557065,1.28445449,105710.0,105700.0,2.0308]
[1750164557503,1.28449449,105710.0,105700.0,2.0308]
[1750164557716,1.08809449,105710.0,105700.0,2.0308]
[1750164557930,1.28449449,105710.0,105700.0,2.0308]
[1750164561670,1.28497449,105710.0,105700.0,2.0308]
[1750164564198,1.28497449,105710.0,105700.0,2.0308]
[1750164564832,1.28493449,105710.0,105700.0,2.0308]
[1750164566972,1.08809449,105710.0,105700.0,2.0308]
[1750164567178,1.28489449,105710.0,105700.0,2.0308]
[1750164568670,1.04846455,105710.0,105700.0,2.0308]
[1750164568878,1.28489449,105710.0,105700.0,2.0308]
[1750164571222,1.08809449,105710.0,105700.0,2.0308]
[1750164571449,1.28493449,105710.0,105700.0,2.0308]
[1750164573105,1.52153603,105710.0,105700.0,2.0308]
[1750164573577,0.85166455,105710.0,105700.0,2.0308]
[1750164573810,1.52145603,105710.0,105700.0,2.0308]
[1750164574713,1.52153603,105710.0,105700.0,2.0308]
[1750164574945,1.52149603,105710.0,105700.0,2.0308]
[1750164575199,1.32469603,105710.0,105700.0,2.0308]
[1750164575437,0.767435,105710.0,105700.0,2.0308]
[1750164575667,1.15987074,105710.0,105700.0,2.0308]
[1750164575899,1.13718495,105710.0,105700.0,2.0308]
[1750164577062,1.13713523,105710.0,105700.0,2.0308]
[1750164577299,1.23328445,105710.0,105700.0,2.0308]
[1750164578241,1.03648445,105710.0,105700.0,2.0308]
[1750164578698,1.23328445,105710.0,105700.0,2.0308]
[1750164578953,1.03648445,105710.0,105700.0,2.0308]
[1750164579185,1.23328445,105710.0,105700.0,2.0308]
[1750164579653,1.03648445,105710.0,105700.0,2.0308]
[1750164579903,1.23328445,105710.0,105700.0,2.0308]
[1750164580157,0.94033523,105710.0,105700.0,2.0308]
[1750164580396,1.13709523,105710.0,105700.0,2.0308]
[1750164581569,0.94033523,105710.0,105700.0,2.0308]
[1750164581781,1.13705523,105710.0,105700.0,2.0308]
[1750164581992,1.03648445,105710.0,105700.0,2.0308]
[1750164582259,1.23316445,105710.0,105700.0,2.0308]
[1750164582764,0.73020836,105710.0,105700.0,2.0308]
[1750164582985,0.88600836,105710.0,105700.0,2.0308]
[1750164583203,1.12247438,105710.0,105700.0,2.0308]
[1750164584393,1.09401238,105710.0,105700.0,2.0308]
[1750164584629,1.09397238,105710.0,105700.0,2.0308]
[1750164585310,0.89737238,105710.0,105700.0,2.0308]
[1750164585540,1.09397238,105710.0,105700.0,2.0308]
[1750164588728,1.09393238,105710.0,105700.0,2.0308]
[1750164591753,0.89737238,105710.0,105700.0,2.0308]
[1750164592001,1.13867217,105710.0,105700.0,2.0]
[1750164592229,1.28305514,105710.0,105700.0,2.0]
[1750164592457,1.20748006,105710.0,105700.0,2.0]
[1750164593134,1.19108006,105710.0,105700.0,2.0]
[1750164593356,1.19124006,105710.0,105700.0,2.0]
[1750164594491,0.99360006,105710.0,105700.0,2.0]
[1750164594709,1.19124006,105710.0,105700.0,2.0]
[1750164596814,1.20664006,105710.0,105700.0,2.0]
[1750164597568,1.19124006,105710.0,105700.0,2.0]
[1750164598303,1.19124006,105710.0,105700.0,1.99752]
[1750164599882,1.23620774,105710.0,105700.0,1.99752]
[1750164601266,1.26462974,105710.0,105700.0,1.99752]
[1750164602499,1.02816372,105710.0,105700.0,1.99752]
[1750164602722,1.26462974,105710.0,105700.0,1.99752]
[1750164607257,1.50109576,105710.0,105700.0,1.96582]
[1750164607464,1.02816372,105710.0,105700.0,1.96582]
[1750164607680,1.50109576,105710.0,105700.0,1.93149]
[1750164607893,1.50085576,105710.0,105700.0,1.89902]
[1750164608110,1.50085576,105710.0,105700.0,1.86368]
[1750164608349,1.50085576,105710.0,105700.0,1.7690035]
[1750164608549,1.70085576,105710.0,105700.0,1.7690035]